bitfinex/quotes_ETHUSD_20220220
["timestamp","ask_amount","ask_price","bid_price","bid_amount"]
[1645318307841,1.44933928,2739.0,2738.5,1.55021162]
[1645318308043,1.45259596,2739.0,2738.5,1.55021162]
[1645318308455,1.97459596,2739.0,2738.5,1.55021162]
[1645318308643,1.97459596,2739.0,2738.4,1.20267178]
[1645318308849,1.97133928,2739.0,2738.4,1.20267178]
[1645318309245,1.97459596,2739.0,2738.4,1.20267178]
[1645318310246,1.97133928,2739.0,2738.4,1.20267178]
[1645318310447,1.97459592,2739.0,2738.4,1.20267178]
[1645318311244,1.97133928,2739.0,2738.4,1.20267178]
[1645318311691,1.97459803,2739.0,2738.4,1.20267178]
[1645318312490,1.97133928,2739.0,2738.4,1.20267178]
[1645318312891,1.97459803,2739.0,2738.4,1.20267178]
[1645318313692,1.97133928,2739.0,2738.4,1.20267178]
[1645318313892,1.97459803,2739.0,2738.4,1.20267178]
[1645318314894,1.97133928,2739.0,2738.4,1.20267178]
[1645318315094,1.97459803,2739.0,2738.4,1.20267178]
[1645318315942,1.45259803,2739.0,2738.4,1.20267178]
[1645318316142,1.44933928,2739.0,2738.4,1.20267178]
[1645318316339,1.45259803,2739.0,2738.4,1.20267178]
[1645318316538,1.45259803,2739.0,2738.7,1.13690767]
[1645318317343,1.44933928,2739.0,2738.7,1.13690767]
[1645318317741,1.45259814,2739.0,2738.7,1.13690767]
[1645318317943,1.45259814,2739.0,2738.4,1.20267178]
[1645318318146,1.97459814,2739.0,2738.4,1.20267178]
[1645318318545,1.97133928,2739.0,2738.4,1.20267178]
[1645318318743,1.97459803,2739.0,2738.4,1.20267178]
[1645318319812,1.97133928,2739.0,2738.4,1.20267178]
[1645318320013,1.97415932,2739.0,2738.4,1.20267178]
[1645318321012,1.97133928,2739.0,2738.4,1.20267178]
[1645318321213,1.97415932,2739.0,2738.4,1.20267178]
[1645318322214,1.97133928,2739.0,2738.4,1.20267178]
[1645318322416,1.97415932,2739.0,2738.4,1.20267178]
[1645318323041,1.97415932,2739.0,2738.4,1.15167658]
[1645318323444,1.97133928,2739.0,2738.4,1.15167658]
[1645318323641,1.97420348,2739.0,2738.4,1.15167658]
[1645318324443,1.72420348,2739.0,2738.4,1.15167658]
[1645318324649,1.72133928,2739.0,2738.4,1.15167658]
[1645318324842,1.72420348,2739.0,2738.4,1.15167658]
[1645318325743,1.72133928,2739.0,2738.4,1.15167658]
[1645318325945,1.72420348,2739.0,2738.4,1.15167658]
[1645318326892,1.72133928,2739.0,2738.5,1.55174221]
[1645318327295,1.72419805,2739.0,2738.5,1.55174221]
[1645318328091,1.72133928,2739.0,2738.5,1.55174221]
[1645318328490,1.72419808,2739.0,2738.5,1.55174221]
[1645318329290,1.72133928,2739.0,2738.5,1.55174221]
[1645318329692,1.20219808,2739.0,2738.5,1.55174221]
[1645318330539,1.19933928,2739.0,2738.5,1.55174221]
[1645318330848,1.20219879,2739.0,2738.5,1.55174221]
[1645318331840,1.19933928,2739.0,2738.5,1.55174221]
[1645318332139,1.20219879,2739.0,2738.5,1.55174221]
[1645318332547,0.28843879,2739.0,2738.5,1.55174221]
[1645318332745,0.28843879,2739.0,2738.6,3.1358984]
[1645318332945,0.28843879,2739.0,2738.7,1.55174221]
[1645318333144,0.28557928,2739.0,2738.7,1.55174221]
[1645318333345,0.28843879,2739.0,2738.7,1.55174221]
[1645318334195,0.28557928,2739.0,2738.7,1.55174221]
[1645318334389,0.2888361,2739.0,2738.7,1.55174221]
[1645318335390,0.28557928,2739.0,2738.7,1.55174221]
[1645318335591,0.2888361,2739.0,2738.7,1.55174221]
[1645318336592,0.28557928,2739.0,2738.7,1.55174221]
[1645318336790,0.2888361,2739.0,2738.7,1.55174221]
[1645318337844,0.28557928,2739.0,2738.7,1.55174221]
[1645318338143,0.28877694,2739.0,2738.7,1.55174221]
[1645318339042,0.28557928,2739.0,2738.7,1.55174221]
[1645318339243,0.28877694,2739.0,2738.7,1.55174221]
[1645318340244,0.28557928,2739.0,2738.6,1.1364]
[1645318340447,0.28877694,2739.0,2738.6,1.1364]
[1645318341444,0.28557928,2739.0,2738.6,1.1364]
[1645318341689,0.2888381,2739.0,2738.6,1.1364]
[1645318342490,0.28557928,2739.0,2738.6,1.1364]
[1645318342690,0.28557928,2739.0,2738.8,500.0]
[1645318342890,0.2888381,2739.0,2738.8,500.0]
[1645318343094,0.2888381,2739.0,2738.8,499.95]
[1645318343690,0.28557928,2739.0,2738.8,499.95]
[1645318344095,0.28883817,2739.0,2738.8,499.95]
[1645318344292,0.28883817,2739.0,2738.9,1.55145217]
[1645318344495,0.92654363,2739.4,2739.0,6.5]
[1645318344496,0.01303363,2739.4,2739.0,6.5]
[1645318344693,0.56852428,2739.4,2739.0,6.5]
[1645318345091,0.55549065,2739.4,2739.0,6.5]
[1645318345537,0.55549065,2739.4,2739.1,0.86426682]
[1645318348248,1.46901065,2739.4,2738.9,1.1999]
[1645318348443,1.99101065,2739.4,2738.9,1.1999]
[1645318348645,1.99101065,2739.4,2738.8,499.95]
[1645318348842,0.00325878,2739.3,2738.8,499.95]
[1645318349692,2.99101065,2739.4,2738.8,499.95]
[1645318349892,2.99101065,2739.4,2738.9,1.00537882]
[1645318350093,0.91367,2739.1,2738.9,1.00537882]
[1645318351296,0.91692885,2739.1,2738.9,1.00537882]
[1645318352195,0.91367,2739.1,2738.9,1.00537882]
[1645318352397,0.91692885,2739.1,2738.9,1.00537882]
[1645318352597,0.00325885,2739.1,2738.9,1.00537882]
[1645318353346,1.99101065,2739.4,2738.9,1.00537882]
[1645318353550,0.00325885,2739.1,2738.9,1.00537882]
[1645318354646,1.99101065,2739.4,2738.9,1.00537882]
[1645318354846,0.00325885,2739.1,2738.9,1.00537882]
[1645318355046,0.91684885,2739.1,2738.9,1.00537882]
[1645318355445,0.91684885,2739.1,2738.8,499.95]
[1645318355847,0.91359,2739.1,2738.8,499.95]
[1645318356049,0.91684881,2739.1,2738.8,499.95]
[1645318356897,0.91359,2739.1,2738.8,499.95]
[1645318357100,0.91359,2739.1,2738.9,1.16988977]
[1645318357303,0.91684881,2739.1,2738.9,1.16988977]
[1645318357599,0.91684881,2739.1,2738.8,499.95]
[1645318357999,0.00325881,2739.1,2738.8,499.95]
[1645318358200,2.99101065,2739.4,2738.8,499.95]
[1645318358399,0.00325881,2739.1,2738.8,499.95]
[1645318359403,2.99101065,2739.4,2738.8,499.95]
[1645318359599,0.00325881,2739.1,2738.9,1.03195849]
[1645318360641,2.99101065,2739.4,2738.9,1.03195849]
[1645318360842,0.00325885,2739.1,2738.9,1.03195849]
[1645318361742,2.99101065,2739.4,2738.9,1.03195849]
[1645318362141,0.00325885,2739.1,2738.9,1.03195849]
[1645318362747,0.91684885,2739.1,2738.9,1.03195849]
[1645318363145,1.91359,2739.1,2738.8,499.95]
[1645318363348,1.91359,2739.1,2738.8,498.96586027]
[1645318363349,0.522,2739.0,2738.8,498.96586027]
[1645318363545,3.5,2738.9,2738.8,493.37823027]
[1645318363749,3.5639,2738.9,2738.8,493.33622881]
[1645318363944,4.5639,2738.9,2738.8,493.33622881]
[1645318364195,4.5639,2738.9,2738.8,492.81610271]
[1645318365398,4.5639,2738.9,2738.8,487.33221271]
[1645318366196,4.5639,2738.9,2738.8,481.32829271]
[1645318366697,4.5639,2738.9,2738.8,475.84429271]
[1645318368846,4.65001616,2738.9,2738.8,475.84429271]
[1645318369444,9.65001616,2738.9,2738.8,475.84429271]
[1645318369644,4.65001616,2738.9,2738.8,475.84429271]
[1645318370248,4.65001616,2738.9,2738.8,475.34097769]
[1645318370447,4.5639,2738.9,2738.8,475.34097769]
[1645318370644,9.5639,2738.9,2738.8,475.34097769]
[1645318370844,4.5639,2738.9,2738.8,475.34097769]
[1645318372494,7.42676439,2738.9,2738.8,475.34097769]
[1645318378748,7.42676439,2738.9,2738.8,475.29097769]
[1645318378950,7.42676439,2738.9,2738.8,474.76097769]
[1645318381001,7.42676439,2738.9,2738.8,466.41272173]
[1645318381002,19.04188055,2738.9,2738.8,466.41272173]
[1645318381200,19.19788055,2738.9,2738.8,466.41272173]
[1645318381398,19.20748055,2738.9,2738.8,466.41272173]
[1645318381598,22.19660827,2738.9,2738.8,460.92786173]
[1645318382005,22.19500827,2738.9,2738.8,460.92786173]
[1645318382201,22.19660827,2738.9,2738.8,455.44290173]
[1645318382402,22.19580827,2738.9,2738.8,455.44290173]
[1645318382601,22.19420827,2738.9,2738.8,449.95793173]
[1645318382847,22.19340827,2738.9,2738.8,449.95793173]
[1645318383050,22.19420827,2738.9,2738.8,449.95793173]
[1645318383251,22.19180827,2738.9,2738.8,444.47308173]
[1645318383453,22.18940827,2738.9,2738.8,444.47308173]
[1645318383652,22.18940827,2738.9,2738.8,438.98829173]
[1645318383850,22.18860827,2738.9,2738.8,438.98829173]
[1645318384051,22.18300827,2738.9,2738.8,438.98829173]
[1645318384250,22.18460827,2738.9,2738.8,433.50369173]
[1645318384450,22.18380827,2738.9,2738.8,433.50369173]
[1645318384754,22.18380827,2738.9,2738.8,428.01899173]
[1645318385149,22.18220827,2738.9,2738.8,428.01899173]
[1645318385450,22.18380827,2738.9,2738.8,422.53448173]
[1645318385649,22.18540827,2738.9,2738.8,422.53448173]
[1645318385851,22.18460827,2738.9,2738.8,422.53448173]
[1645318386051,22.13460827,2738.9,2738.8,417.04984173]
[1645318386352,22.13060827,2738.9,2738.8,417.04984173]
[1645318386595,22.12980827,2738.9,2738.8,411.56515173]
[1645318386796,22.12900827,2738.9,2738.8,411.56515173]
[1645318386997,22.12820827,2738.9,2738.8,411.03014173]
[1645318387198,86.81175827,2738.9,2738.8,401.267992]
[1645318387404,79.35885027,2738.9,2738.8,398.95597519]
[1645318387598,79.35885027,2738.9,2738.8,392.9308723]
[1645318387599,78.65536627,2738.9,2738.8,392.9308723]
[1645318387796,78.65536627,2738.9,2738.8,387.4449123]
[1645318387998,78.95592927,2738.9,2738.8,387.4449123]
[1645318388198,78.95672927,2738.9,2738.8,381.9589023]
[1645318388399,66.03269327,2738.9,2738.8,375.5585123]
[1645318388597,80.71611427,2738.9,2738.8,375.5585123]
[1645318388797,62.12709327,2738.9,2738.8,364.5864123]
[1645318388998,62.12549327,2738.9,2738.8,364.5864123]
[1645318389197,56.70045427,2738.9,2738.8,364.5864123]
[1645318389397,63.42548227,2738.9,2738.8,357.1304123]
[1645318389598,66.92788227,2738.9,2738.8,357.1304123]
[1645318389902,51.67724227,2738.9,2738.8,351.6444723]
[1645318390097,51.67404227,2738.9,2738.8,351.6444723]
[1645318390344,56.66424427,2738.9,2738.8,346.1407123]
[1645318390545,50.31264427,2738.9,2738.8,346.1407123]
[1645318390746,47.59906527,2738.9,2738.8,346.1407123]
[1645318390947,47.59826527,2738.9,2738.8,340.6552723]
[1645318391147,46.88354127,2738.9,2738.8,340.6552723]
[1645318391449,53.40069527,2738.9,2738.8,335.1698623]
[1645318391647,53.40149527,2738.9,2738.8,335.1698623]
[1645318391847,51.73300827,2738.9,2738.8,335.1698623]
[1645318392047,48.23300827,2738.9,2738.8,329.6843723]
[1645318392452,43.23300827,2738.9,2738.8,324.1988223]
[1645318392647,26.70581627,2738.9,2738.8,324.0988223]
[1645318392849,21.40460827,2738.9,2738.8,324.0988223]
[1645318393049,21.39500827,2738.9,2738.8,318.6139023]
[1645318393250,21.39580827,2738.9,2738.8,318.6139023]
[1645318393449,21.39420827,2738.9,2738.8,313.1287323]
[1645318393651,21.39980827,2738.9,2738.8,313.1287323]
[1645318393848,21.39740827,2738.9,2738.8,313.1287323]
[1645318394105,21.99660827,2738.9,2738.8,307.6435023]
[1645318394312,22.99820827,2738.9,2738.8,307.6435023]
[1645318394500,22.99900827,2738.9,2738.8,307.6435023]
[1645318394701,22.99900827,2738.9,2738.8,302.1582123]
[1645318395304,37.08608827,2738.9,2738.8,296.1546423]
[1645318395505,49.10533218,2738.9,2738.8,296.1546423]
[1645318395803,43.30087618,2738.9,2738.8,290.6694523]
[1645318396003,43.29847618,2738.9,2738.8,290.6694523]
[1645318396207,43.29767618,2738.9,2738.8,290.6694523]
[1645318396403,33.65893418,2738.9,2738.8,285.1841223]
[1645318396603,35.65653418,2738.9,2738.8,285.1841223]
[1645318396803,35.65653418,2738.9,2738.8,279.6988423]
[1645318397404,35.65493418,2738.9,2738.8,274.2136223]
[1645318397608,33.40177218,2738.9,2738.8,274.2136223]
[1645318397849,31.82131618,2738.9,2738.8,268.7285223]
[1645318398051,35.35355969,2738.9,2738.8,268.7285223]
[1645318398253,31.85355969,2738.9,2738.8,268.7285223]
[1645318398452,31.85355969,2738.9,2738.8,263.2433023]
[1645318398653,31.85275969,2738.9,2738.8,263.2433023]
[1645318398949,31.85435969,2738.9,2738.8,257.7581123]
[1645318399351,31.85515969,2738.9,2738.8,257.7581123]
[1645318399550,30.24263569,2738.9,2738.8,252.2729223]
[1645318399755,27.25370369,2738.9,2738.8,252.2729223]
[1645318399953,27.24330369,2738.9,2738.8,252.2729223]
[1645318400159,27.24410369,2738.9,2738.8,252.2729223]
[1645318400353,27.24330369,2738.9,2738.8,252.2729223]
[1645318400552,27.24730369,2738.9,2738.8,252.2729223]
[1645318400951,31.62964969,2738.9,2738.8,252.2729223]
[1645318401154,31.63124969,2738.9,2738.8,252.2729223]
[1645318401354,31.63044969,2738.9,2738.8,246.7879423]
[1645318401612,36.52964969,2738.9,2738.8,246.7879423]
[1645318401811,36.62384769,2738.9,2738.8,241.3024223]
[1645318402011,34.22064769,2738.9,2738.8,241.3024223]
[1645318402407,34.22064769,2738.9,2738.8,235.8169123]
[1645318402912,37.82144769,2738.9,2738.8,230.3313523]
[1645318403109,36.32224769,2738.9,2738.8,230.3313523]
[1645318403308,36.32224769,2738.9,2738.8,224.8457923]
[1645318403309,54.62464769,2738.9,2738.8,224.8457923]
[1645318403508,37.82384769,2738.9,2738.8,224.8457923]
[1645318403712,41.32304769,2738.9,2738.8,224.8457923]
[1645318403911,41.32224769,2738.9,2738.8,219.3602523]
[1645318404112,41.32144769,2738.9,2738.8,219.3602523]
[1645318404311,41.31984769,2738.9,2738.8,219.3602523]
[1645318404513,41.31984769,2738.9,2738.8,213.8747123]
[1645318404711,41.31824769,2738.9,2738.8,213.8747123]
[1645318404913,39.82064769,2738.9,2738.8,208.3890323]
[1645318405114,38.95690569,2738.9,2738.8,208.3890323]
[1645318405362,49.09930569,2738.9,2738.8,208.3890323]
[1645318405557,54.45210569,2738.9,2738.8,198.21364506]
[1645318405857,54.45210569,2738.9,2738.8,190.23448504]
[1645318405858,104.83655762,2738.9,2738.8,190.23448504]
[1645318406053,103.07835762,2738.9,2738.8,184.74805504]
[1645318406253,102.53735762,2738.9,2738.8,184.74805504]
[1645318406456,102.53655762,2738.9,2738.8,184.74805504]
[1645318406655,102.53655762,2738.9,2738.8,179.03216426]
[1645318406656,102.18106462,2738.9,2738.8,179.03216426]
[1645318406855,102.17866462,2738.9,2738.8,179.03216426]
[1645318407054,102.17626462,2738.9,2738.8,173.54584426]
[1645318407553,102.17386462,2738.9,2738.8,173.54584426]
[1645318407759,103.74931203,2738.9,2738.8,8.01370383]
[1645318407959,0.91462,2738.3,2736.9,1.42]
[1645318408165,6.529,2737.1,2736.9,1.2375]
[1645318408356,1.522,2737.0,2736.8,0.6826]
[1645318408556,1.522,2737.0,2736.8,0.5]
[1645318408557,5.72481668,2737.0,2736.8,0.5]
[1645318408759,6.02081668,2737.0,2736.5,0.81519233]
[1645318409102,6.02001668,2737.0,2736.8,0.00105211]
[1645318409305,6.02241668,2737.0,2736.8,0.00105211]
[1645318409503,6.02001668,2737.0,2736.9,0.86499921]
[1645318409703,3.03672,2737.0,2736.8,0.00105211]
[1645318409909,3.03672,2737.0,2736.5,0.81519233]
[1645318410104,3.03672,2737.0,2736.8,0.00105209]
[1645318410507,3.58007195,2737.0,2736.8,0.00105209]
[1645318411103,3.58007195,2737.0,2736.8,0.9815441]
[1645318411303,3.58007195,2737.0,2736.8,0.98461616]
[1645318411907,2.66535195,2737.0,2736.8,0.98461616]
[1645318412106,2.06535195,2737.0,2736.8,0.98461616]
[1645318412305,2.06535195,2737.0,2736.8,0.9815441]
[1645318412505,2.06535195,2737.0,2736.8,0.98461616]
[1645318413553,2.06535195,2737.0,2736.8,0.9815441]
[1645318413755,1.06535195,2737.0,2736.8,0.98460839]
[1645318414756,1.06535195,2737.0,2736.8,0.9815441]
[1645318414956,1.06535195,2737.0,2736.8,0.9843822]
[1645318415960,1.06535195,2737.0,2736.8,0.9815441]
[1645318416155,1.06535195,2737.0,2736.8,0.9843822]
[1645318417008,1.06535195,2737.0,2736.8,0.9815441]
[1645318417412,1.06535195,2737.0,2736.8,0.98439281]
[1645318418209,1.66535195,2737.0,2736.8,0.9815441]
[1645318418411,2.66535195,2737.0,2736.8,0.9815441]
[1645318418616,2.66535195,2737.0,2736.8,0.98441057]
[1645318419610,2.66535195,2737.0,2736.8,0.9815441]
[1645318419811,2.66535195,2737.0,2736.8,0.98441057]
[1645318420659,2.66535195,2737.0,2736.8,0.9815441]
[1645318421059,2.66535195,2737.0,2736.8,0.00286472]
[1645318421363,1.8292,2736.9,2736.8,0.00286472]
[1645318421561,2.3512,2736.9,2736.8,0.00286472]
[1645318421758,3.3512,2736.9,2736.8,0.00286472]
[1645318421959,3.3512,2736.9,2736.0,4.1411]
[1645318422159,3.3512,2736.9,2736.7,0.00286284]
[1645318422359,3.3512,2736.9,2736.8,1.15361732]
[1645318422761,3.3512,2736.9,2736.7,0.00286284]
[1645318423261,3.3512,2736.9,2736.7,0.00286286]
[1645318423762,10.8171272,2736.8,2736.7,0.00286286]
[1645318424110,10.77566086,2736.8,2736.7,0.00286286]
[1645318424306,15.92298806,2736.8,2736.0,4.1411]
[1645318424527,0.91473,2736.6,2736.2,0.01220603]
[1645318424713,0.522,2736.5,2736.2,0.01220603]
[1645318425409,0.522,2736.5,2736.0,1.1054]
[1645318425608,0.522,2736.5,2736.4,1.04791811]
[1645318428660,0.522,2736.8,2736.4,1.07828716]
[1645318429261,0.522,2736.8,2736.5,0.00304504]
[1645318430262,0.522,2736.8,2736.4,1.07828716]
[1645318430659,0.522,2736.8,2736.5,0.00304542]
[1645318431604,0.522,2736.8,2736.4,1.07828716]
[1645318431808,0.522,2736.8,2736.5,0.00304542]
[1645318432608,0.522,2736.8,2736.4,1.07828716]
[1645318433007,0.522,2736.8,2736.5,0.00304542]
[1645318433811,4.10266086,2736.8,2736.5,0.00304542]
[1645318434009,0.91468,2736.6,2736.0,1.1054]
[1645318434209,0.91468,2736.6,2736.5,0.00304559]
[1645318434512,1.43668,2736.6,2736.5,0.00304559]
[1645318434711,5.31734086,2736.6,2736.5,0.00304559]
[1645318434916,5.31734086,2736.6,2735.7,7.17220506]
[1645318434917,9.5,2736.5,2735.7,7.17220506]
[1645318435119,0.91494,2736.3,2735.7,6.97940506]
[1645318435366,0.91494,2736.3,2735.6,1.2237]
[1645318435367,0.522,2736.2,2735.6,1.2237]
[1645318435557,4.42936086,2736.2,2735.4,5.759]
[1645318435758,2.0047,2736.2,2735.4,5.759]
[1645318435956,2.0047,2736.2,2735.6,1.08496527]
[1645318436859,1.83,2736.1,2735.6,1.08496527]
[1645318437062,0.522,2736.0,2735.6,1.08496527]
[1645318437257,0.822,2736.0,2735.6,1.08496527]
[1645318437459,0.522,2736.0,2735.6,1.08496527]
[1645318438860,0.91487,2735.9,2735.6,1.08496527]
[1645318439117,0.522,2735.8,2735.7,0.00326106]
[1645318439316,0.522,2736.1,2735.7,0.00326106]
[1645318439916,0.522,2736.1,2735.6,1.08496527]
[1645318440119,0.522,2736.1,2735.8,0.00326101]
[1645318441119,0.91479,2736.0,2735.6,1.08496527]
[1645318441319,0.91479,2736.0,2735.8,0.00326099]
[1645318442421,0.91479,2736.0,2735.6,1.08496527]
[1645318442626,0.91479,2736.0,2735.8,0.00326101]
[1645318442879,0.522,2735.9,2735.8,0.00326101]
[1645318443070,0.822,2735.9,2735.8,0.00326101]
[1645318443469,0.822,2735.9,2735.0,7.4725]
[1645318443669,0.915,2735.7,2735.3,0.96878755]
[1645318443869,0.522,2735.6,2735.3,0.98183376]
[1645318444168,0.522,2735.6,2735.3,0.01304621]
[1645318444669,0.522,2735.6,2734.8,3.258]
[1645318445069,0.522,2735.6,2735.4,0.9396548]
[1645318446272,0.522,2735.6,2735.4,0.94291599]
[1645318447112,0.522,2735.6,2735.4,0.9396548]
[1645318447314,0.522,2735.6,2735.4,0.94291599]
[1645318448315,0.522,2735.6,2735.4,0.9396548]
[1645318448714,0.522,2735.6,2735.4,0.94291599]
[1645318449115,0.522,2735.6,2735.4,0.00326119]
[1645318449616,0.522,2735.6,2734.8,3.258]
[1645318449817,0.522,2735.6,2735.4,0.00326119]
[1645318450121,4.09923804,2735.5,2735.4,0.00326119]
[1645318450362,5.62123804,2735.5,2735.0,0.01304672]
[1645318450563,0.91524,2735.4,2735.0,0.01304672]
[1645318450764,0.91524,2735.4,2734.8,4.31724517]
[1645318450765,0.522,2735.3,2734.8,4.31724517]
[1645318451260,0.522,2735.3,2734.8,3.258]
[1645318451463,1.83045,2735.2,2734.7,10.2489]
[1645318451667,0.522,2735.1,2734.7,10.2489]
[1645318451861,0.522,2735.1,2734.7,7.32]
[1645318452064,0.522,2735.1,2734.7,7.27]
[1645318452665,1.83045,2735.0,2734.7,7.27]
[1645318452864,0.522,2734.9,2734.5,2.1990013]
[1645318453063,0.522,2734.9,2734.6,1.55367154]
[1645318453365,4.62123804,2734.9,2734.5,1.156]
[1645318453565,4.62123804,2734.9,2734.3,1.1848]
[1645318453566,1.83074,2734.8,2734.3,1.1848]
[1645318453763,3.13074,2734.8,2734.1,2.7836]
[1645318453963,0.522,2734.7,2734.1,2.7836]
[1645318454210,1.522,2734.7,2734.1,2.7836]
[1645318454409,1.522,2734.7,2734.1,3.96690024]
[1645318454609,1.522,2734.7,2734.3,0.00326168]
[1645318454810,1.822,2734.7,2734.3,0.00326168]
[1645318455011,1.83081,2734.6,2734.3,0.00326168]
[1645318455214,0.522,2734.5,2734.3,0.00326168]
[1645318455709,0.522,2734.5,2734.3,0.0012178]
[1645318455911,4.09923804,2734.4,2734.3,0.0012178]
[1645318456114,2.3529,2734.4,2734.3,0.0012178]
[1645318456314,2.3529,2734.4,2733.9,1.23114176]
[1645318456315,3.5097,2734.4,2733.9,1.23114176]
[1645318456516,1.1827,2734.3,2733.9,1.23114176]
[1645318456710,1.1827,2734.3,2733.9,1.208]
[1645318456711,7.051,2734.2,2733.9,1.208]
[1645318456911,7.051,2734.2,2733.7,0.0433605]
[1645318456912,1.0,2734.1,2733.7,0.0433605]
[1645318457110,0.522,2734.0,2733.7,0.0433605]
[1645318457311,2.35311,2734.0,2733.7,0.0433605]
[1645318457510,2.35311,2734.0,2733.5,1.15071741]
[1645318457716,2.35311,2734.0,2733.6,1.55415701]
[1645318457717,0.522,2734.0,2733.6,1.55415701]
[1645318458559,2.2156,2734.1,2734.0,1.044]
[1645318458762,2.7376,2734.1,2734.0,2.10329978]
[1645318458962,1.522,2734.1,2734.0,2.10329978]
[1645318459762,0.522,2734.1,2734.0,2.10329978]
[1645318466058,0.522,2734.1,2734.0,1.044]
[1645318474866,2.35298,2734.1,2734.0,1.044]
[1645318475363,3.35298,2734.1,2734.0,1.044]
[1645318475565,2.35298,2734.1,2734.0,1.044]
[1645318475761,1.522,2734.1,2734.0,1.044]
[1645318475969,2.43747,2734.1,2734.0,1.044]
[1645318476269,1.43747,2734.1,2734.0,1.044]
[1645318476461,2.43747,2734.1,2734.0,1.044]
[1645318476912,1.43747,2734.1,2734.0,1.044]
[1645318477111,2.43747,2734.1,2734.0,1.044]
[1645318477316,0.522,2734.1,2734.0,1.044]
[1645318477912,1.51027361,2734.7,2734.0,1.044]
[1645318478119,6.2906,2735.1,2734.1,0.0034547]
[1645318478120,0.1827,2735.1,2734.1,0.0034547]
[1645318478316,0.522,2735.3,2735.0,0.97468042]
[1645318478517,0.522,2735.3,2735.0,0.97813512]
[1645318479113,0.5471498,2735.4,2735.0,0.97813512]
[1645318480468,0.5471498,2735.4,2735.1,4.06883792]
[1645318480664,0.5471498,2735.4,2735.1,4.07229262]
[1645318481564,0.00303871,2735.9,2735.1,4.07229262]
[1645318481763,0.00303871,2735.9,2735.8,0.95875795]
[1645318481964,0.522,2736.0,2735.2,0.0034547]
[1645318481965,1.43677,2736.0,2735.2,0.0034547]
[1645318482166,1.98701491,2736.0,2735.2,0.0034547]
[1645318482367,0.00303887,2735.9,2735.2,0.0034547]
[1645318482566,2.35194,2735.8,2735.2,0.0034547]
[1645318482767,2.95194,2735.8,2735.2,0.0034547]
[1645318482964,2.95194,2735.8,2734.8,0.0034547]
[1645318483169,1.0,2735.7,2735.2,0.95759921]
[1645318483363,0.522,2735.6,2735.3,0.0034547]
[1645318484124,1.91497,2735.7,2735.3,0.0034547]
[1645318484625,1.0,2735.7,2735.3,4.07229262]
[1645318484825,1.52526323,2735.9,2735.3,4.07229262]
[1645318485025,0.52526323,2735.9,2735.3,0.0034547]
[1645318485226,0.52526323,2735.9,2735.8,0.99639855]
[1645318485629,0.522,2735.9,2735.8,0.99639855]
[1645318490463,0.522,2735.9,2735.3,0.0034547]
[1645318490464,0.91484,2735.8,2735.3,0.0034547]
[1645318491463,0.522,2735.9,2735.2,4.06883792]
[1645318491716,0.522,2735.9,2735.4,0.9910192]
[1645318491907,0.5252633,2735.9,2735.4,0.9910192]
[1645318492809,0.522,2735.9,2735.4,0.9910192]
[1645318493010,0.52526338,2735.9,2735.4,0.9910192]
[1645318494015,0.55024491,2736.0,2735.5,4.06883792]
[1645318494218,1.0667667,2736.2,2735.5,4.06883792]
[1645318494412,0.00326338,2735.9,2735.5,4.06883792]
[1645318495213,1.522,2736.6,2735.5,4.06883792]
[1645318495466,0.00326342,2735.9,2735.5,4.06883792]
[1645318496358,2.08203947,2736.6,2735.5,4.06883792]
[1645318496559,0.00326342,2735.9,2735.5,4.06883792]
[1645318497361,6.342e-05,2735.9,2735.6,0.91451]
[1645318497564,6.342e-05,2735.9,2735.7,4.98327182]
[1645318497765,0.56003947,2736.6,2735.8,4.06883792]
[1645318497964,0.56003947,2736.6,2735.9,0.9551846]
[1645318498162,0.56003947,2736.6,2736.0,4.06883792]
[1645318498363,0.56003947,2736.6,2735.9,0.9551846]
[1645318498564,0.56003947,2736.6,2736.0,4.06883792]
[1645318498962,0.56003947,2736.6,2735.9,1.8695446]
[1645318499214,0.00205013,2736.4,2735.9,5.93838252]
[1645318499415,0.00205013,2736.4,2735.9,1.8695446]
[1645318499811,0.00205013,2736.4,2735.9,0.9551846]
[1645318500011,0.56003947,2736.6,2735.9,0.9551846]
[1645318500212,0.00326335,2736.3,2735.9,0.9551846]
[1645318501215,0.91457,2736.5,2735.9,0.9551846]
[1645318501415,0.00326337,2736.2,2735.9,0.9551846]
[1645318501815,0.91457,2736.5,2736.0,9.5]
[1645318501816,0.86783337,2736.5,2736.0,9.5]
[1645318502018,0.86783337,2736.5,2736.0,13.56883792]
[1645318502215,0.86783337,2736.5,2736.0,9.5]
[1645318503575,0.56003947,2736.6,2736.1,4.06883792]
[1645318503863,0.00204773,2736.4,2736.1,4.06883792]
[1645318504762,0.56003947,2736.6,2736.1,4.06883792]
[1645318505165,0.00326331,2736.4,2736.1,4.06883792]
[1645318505463,6.331e-05,2736.4,2736.1,4.06883792]
[1645318506064,0.56003947,2736.6,2736.0,9.5]
[1645318506709,0.56003947,2736.6,2736.0,13.56883792]
[1645318506909,0.56003947,2736.6,2736.0,9.5]
[1645318507213,0.56003947,2736.6,2736.0,13.56883792]
[1645318508011,0.91457,2736.5,2736.0,13.56883792]
[1645318508812,0.91661517,2736.5,2736.0,13.56883792]
[1645318509011,0.00204517,2736.5,2736.0,13.56883792]
[1645318509716,0.56003947,2736.6,2736.0,13.56883792]
[1645318509916,0.00326313,2736.5,2736.0,9.5]
[1645318510114,0.00326313,2736.5,2736.1,4.06883792]
[1645318510866,0.1827,2737.0,2736.1,4.77053792]
[1645318511066,6.316e-05,2736.5,2736.1,4.77053792]
[1645318511366,6.316e-05,2736.5,2736.2,0.9142558]
[1645318511565,6.316e-05,2736.5,2736.3,4.05413092]
[1645318511963,1.0,2737.3,2736.3,4.05413092]
[1645318511964,1.0,2737.3,2736.3,5.24363092]
[1645318512369,0.91433,2737.2,2736.4,1.16624754]
[1645318513764,0.91433,2737.2,2736.5,4.05413092]
[1645318514223,1.0,2737.3,2736.5,4.05413092]
[1645318514422,0.54799677,2737.4,2736.5,4.05413092]
[1645318514625,0.54799677,2737.4,2736.6,5.0]
[1645318514823,0.54799677,2737.4,2736.5,4.05413092]
[1645318514824,6.304e-05,2737.0,2736.5,4.05413092]
[1645318515222,6.304e-05,2737.0,2736.6,2.74231]
[1645318515523,0.54799677,2737.4,2736.6,0.9142]
[1645318515722,0.7046,2737.7,2736.6,0.9142]
[1645318515923,1.25277967,2737.7,2736.6,2.113]
[1645318516324,1.25277967,2737.7,2736.7,4.05413092]
[1645318516523,1.25277967,2737.7,2736.9,0.91411]